bitfinex-derivatives/quotes_BNBF0:USTF0_20250406
["timestamp","ask_amount","ask_price","bid_price","bid_amount"]
[1743934825813,0.569,588.3,587.64,0.28624379]
[1743934826315,0.57922119,588.29,587.64,0.28624379]
[1743934826522,0.57922119,588.28,587.64,0.28624379]
[1743934826717,0.57922119,588.27,587.64,0.28624379]
[1743934826921,0.57922119,588.26,587.64,0.28624379]
[1743934827217,0.57922119,588.25,587.64,0.28624379]
[1743934827421,0.57922119,588.24,587.63,0.34035022]
[1743934827722,0.57922119,588.29,587.64,0.28624419]
[1743934827916,0.57922119,588.28,587.64,0.28624419]
[1743934828116,0.57922119,588.27,587.64,0.28624419]
[1743934828417,0.57922119,588.26,587.64,0.28624419]
[1743934828620,0.57922119,588.25,587.64,0.28624419]
[1743934828817,0.57922119,588.24,587.64,0.28624419]
[1743934829020,0.57922119,588.23,587.64,0.28624419]
[1743934829220,0.57922119,588.22,587.63,0.34035022]
[1743934829415,0.57922119,588.21,587.64,0.28624294]
[1743934829619,0.57922119,588.2,587.44,0.29589824]
[1743934829818,0.57922119,588.19,587.45,0.28629979]
[1743934830022,0.57922119,588.18,587.45,0.28629979]
[1743934830322,0.57922119,588.17,587.45,0.28629979]
[1743934830523,0.57922119,588.16,587.45,0.28629979]
[1743934830723,0.57922119,588.15,587.44,0.29589824]
[1743934830924,0.57922119,588.14,587.45,0.28630635]
[1743934831224,0.57922119,588.29,587.45,0.28630635]
[1743934831424,0.57922119,588.28,587.45,0.28630635]
[1743934831618,0.57922119,588.27,587.46,0.28630635]
[1743934831818,0.57922119,588.26,587.47,0.28630635]
[1743934832019,0.57922119,588.25,587.4,0.29595863]
[1743934832222,0.57922119,588.24,587.41,0.28630635]
[1743934832423,0.57922119,588.23,587.41,0.28630635]
[1743934832724,0.57922119,588.22,587.42,0.2862966]
[1743934832925,0.57922119,588.21,587.24,0.2862966]
[1743934833118,0.57922119,588.2,587.25,0.2862966]
[1743934833319,0.57922119,588.29,587.26,0.2862966]
[1743934833522,0.57922119,588.28,587.24,0.2862966]
[1743934833722,0.57922119,588.27,587.25,0.2862966]
[1743934833918,0.57922119,588.26,587.25,0.29593221]
[1743934834124,0.57922119,588.25,587.26,0.2862966]
[1743934834324,0.57922119,588.29,587.26,0.62686125]
[1743934834523,0.57922119,588.28,587.27,0.2862966]
[1743934834719,0.57922119,588.27,587.28,0.34055305]
[1743934834918,0.57922119,588.29,587.29,0.2862966]
[1743934835119,0.57922119,588.28,587.29,0.2862966]
[1743934835319,0.57922119,588.29,587.29,0.2862966]
[1743934835524,0.569,588.3,587.29,0.2862966]
[1743934835923,0.569,588.3,587.3,0.34054146]
[1743934836324,0.569,588.3,587.31,0.2862966]
[1743934836522,0.451,588.29,587.31,0.2862966]
[1743934836921,0.451,588.29,587.32,0.2862966]
[1743934837123,0.451,588.29,587.33,0.2862966]
[1743934837425,0.451,588.29,587.34,0.2862966]
[1743934837725,0.451,588.29,587.35,0.62671776]
[1743934837926,0.451,588.29,587.36,0.28620529]
[1743934838122,0.451,588.29,587.37,0.28620529]
[1743934838323,0.451,588.29,587.38,0.28620529]
[1743934838524,0.451,588.29,587.39,0.28620529]
[1743934838725,0.451,588.29,587.4,0.62668877]
[1743934838924,0.451,588.29,587.41,0.62668298]
[1743934839126,0.451,588.29,587.47,1.26919122]
[1743934839327,0.451,588.29,587.48,0.28620529]
[1743934839527,0.451,588.29,587.49,0.34043132]
[1743934839729,0.451,588.29,587.5,0.28620529]
[1743934842230,0.451,588.29,587.51,0.34041973]
[1743934842430,0.451,588.29,587.52,0.28620529]
[1743934842634,0.451,588.29,587.53,0.62660123]
[1743934842830,0.451,588.29,587.54,0.62659544]
[1743934843036,0.451,588.29,587.55,0.28619309]
[1743934845741,0.451,588.29,587.54,0.34040235]
[1743934846035,0.451,588.29,587.55,0.28619827]
[1743934847540,0.451,588.29,587.54,0.34040235]
[1743934847735,0.451,588.29,587.55,0.28619336]
[1743934850734,0.451,588.29,587.54,0.34040235]
[1743934851041,0.451,588.29,587.55,0.28619406]
[1743934851435,0.451,588.29,587.54,0.34040235]
[1743934851635,0.451,588.29,587.55,0.28619839]
[1743934855741,0.451,588.29,587.54,0.34040235]
[1743934855941,0.451,588.29,587.56,0.28620647]
[1743934856138,0.451,588.29,587.57,0.28620647]
[1743934856340,0.451,588.29,587.55,0.28620647]
[1743934856541,0.451,588.29,587.56,0.28620647]
[1743934856740,0.451,588.29,587.57,0.28620647]
[1743934856943,0.451,588.29,587.55,0.28620647]
[1743934857143,0.451,588.29,587.56,0.28620647]
[1743934857344,0.451,588.29,587.55,0.28620647]
[1743934857544,0.451,588.29,587.56,0.28620647]
[1743934857744,0.451,588.29,587.55,0.28620647]
[1743934857944,0.451,588.29,587.56,0.28620647]
[1743934858145,0.451,588.29,587.55,0.28620647]
[1743934858346,0.451,588.29,587.56,0.28620647]
[1743934858546,0.451,588.29,587.55,0.28620647]
[1743934858848,0.451,588.29,587.56,0.28620647]
[1743934859049,0.451,588.29,587.55,0.28620647]
[1743934859348,0.451,588.29,587.56,0.28620669]
[1743934859548,0.451,588.29,587.55,0.28620669]
[1743934859745,0.569,588.3,587.56,0.28620669]
[1743934860050,0.569,588.3,587.57,0.28620669]
[1743934860244,0.569,588.3,587.55,0.28620669]
[1743934860445,0.569,588.3,587.56,0.28620669]
[1743934860744,0.569,588.3,587.57,0.28620669]
[1743934860948,0.569,588.3,587.55,0.28620669]
[1743934861147,0.569,588.3,587.56,0.28620669]
[1743934861646,0.29584164,588.36,587.57,0.28620669]
[1743934861845,0.29584164,588.36,587.55,0.28620669]
[1743934862250,0.567,588.35,587.55,0.28620669]
[1743934863745,0.57896327,588.34,587.56,0.2862062]
[1743934863946,0.57896327,588.33,587.57,0.2862062]
[1743934864150,0.57896327,588.32,587.58,0.2862062]
[1743934864450,0.57896327,588.31,587.59,0.2862062]
[1743934864746,0.464,588.33,587.6,0.2862062]
[1743934864950,0.57927108,588.32,587.55,0.2862062]
[1743934865147,0.464,588.33,587.56,0.2862062]
[1743934865148,0.57927108,588.31,587.56,0.2862062]
[1743934865345,0.57927108,588.3,587.55,0.2862062]
[1743934865550,0.57927108,588.29,587.56,0.2862062]
[1743934865748,0.57927108,588.28,587.55,0.2862062]
[1743934865951,0.57927108,588.27,587.54,0.34040235]
[1743934866148,0.57949985,588.32,587.55,0.28622114]
[1743934866347,0.57949985,588.31,587.55,0.28622114]
[1743934866550,0.57949942,588.3,587.55,0.28622114]
[1743934866754,0.57949942,588.29,587.55,0.28622114]
[1743934867052,0.57949942,588.28,587.55,0.28622114]
[1743934867254,0.57949942,588.27,587.55,0.28622114]
[1743934867549,0.464,588.33,587.55,0.28622114]
[1743934867752,0.5795948,588.32,587.55,0.28622114]
[1743934867948,0.5795948,588.31,587.55,0.28622114]
[1743934868153,0.5795948,588.3,587.55,0.28622114]
[1743934868353,0.5795948,588.29,587.55,0.28622114]
[1743934868549,0.5795948,588.28,587.55,0.28622114]
[1743934868753,0.5795948,588.27,587.55,0.28622114]
[1743934868954,0.464,588.33,587.55,0.28622114]
[1743934869154,0.57976331,588.32,587.55,0.28622114]
[1743934869351,0.57976331,588.31,587.55,0.28622114]
[1743934869554,0.57976331,588.3,587.55,0.28622114]
[1743934869754,0.57976331,588.29,587.55,0.28622114]
[1743934869950,0.57976331,588.28,587.55,0.28622114]
[1743934870150,0.57976331,588.27,587.65,1.26919122]
[1743934870351,0.464,588.33,587.66,0.28620645]
[1743934870554,0.57988587,588.32,587.66,0.28620645]
[1743934870754,0.57988587,588.31,587.66,0.28620645]
[1743934870954,0.57988587,588.3,587.66,0.28620645]
[1743934871154,0.57988587,588.29,587.66,0.28620645]
[1743934871352,0.57988587,588.28,587.66,0.28620645]
[1743934871550,0.57988587,588.27,587.66,0.28620645]
[1743934871755,0.57993841,588.32,587.66,0.28620645]
[1743934872054,0.57993841,588.32,587.65,1.26919122]
[1743934872357,0.57993841,588.32,587.66,0.28620617]
[1743934872755,0.57993841,588.32,587.73,1.26919122]
[1743934872948,0.57993841,588.32,587.74,0.28620617]
[1743934873449,0.464,588.33,587.74,0.28620617]
[1743934873653,0.57994095,588.32,587.74,0.28620617]
[1743934874554,0.464,588.33,587.74,0.28620617]
[1743934875157,0.464,588.33,587.59,1.26919122]
[1743934875358,0.464,588.33,587.6,0.28619119]
[1743934875958,0.464,588.33,587.59,1.26919122]
[1743934876156,0.464,588.33,587.6,0.28619084]
[1743934876751,1.04394095,588.33,587.6,0.28619084]
[1743934876953,0.464,588.33,587.59,1.26919122]
[1743934877155,1.04394095,588.33,587.6,0.28620623]
[1743934877359,0.464,588.33,587.6,0.28620623]
[1743934877559,1.04394095,588.33,587.6,0.28620623]
[1743934877855,0.464,588.33,587.6,0.28620623]
[1743934878056,1.04394095,588.33,587.6,0.28620623]
[1743934878256,0.464,588.33,587.6,0.28620623]
[1743934878456,1.04394095,588.33,587.6,0.28620623]
[1743934878656,1.04394095,588.33,587.54,0.34040235]
[1743934878657,0.464,588.33,587.56,1.26919122]
[1743934878855,0.57994095,588.32,587.57,0.28620659]
[1743934879060,0.57994095,588.31,587.57,0.28620659]
[1743934879260,0.57994095,588.3,587.57,0.28620659]
[1743934879461,0.57994095,588.29,587.57,0.28620659]
[1743934879762,0.464,588.33,587.57,0.28620659]
[1743934879960,0.57991048,588.32,587.57,0.28620659]
[1743934880158,0.57991048,588.31,587.57,0.28620659]
[1743934880361,0.57991048,588.3,587.57,0.28620659]
[1743934880559,0.57991048,588.29,587.57,0.28620659]
[1743934880763,0.464,588.33,587.57,0.28620659]
[1743934880963,0.57990942,588.32,587.56,1.26919122]
[1743934881164,0.57990942,588.32,587.54,0.34040235]
[1743934881165,0.464,588.33,587.6,1.26919122]
[1743934881363,0.57992081,588.32,587.61,0.28620128]
[1743934881659,0.57992081,588.31,587.61,0.28620128]
[1743934881960,0.57992081,588.3,587.61,0.28620128]
[1743934882163,0.687,588.32,587.62,0.2861912]
[1743934882366,0.57992131,588.31,587.61,0.2861912]
[1743934882563,0.57992131,588.3,587.62,0.2861912]
[1743934882763,0.687,588.32,587.63,0.2861912]
[1743934882964,0.57992328,588.31,587.61,0.2861912]
[1743934883165,0.57992328,588.3,587.62,0.2861912]
[1743934883365,0.687,588.32,587.63,0.2861912]
[1743934883566,0.687,588.32,587.57,0.29586302]
[1743934883567,0.5799235,588.31,587.67,1.26919122]
[1743934883862,0.5799235,588.3,587.68,0.28619089]
[1743934884066,0.687,588.32,587.68,0.28619089]
[1743934885366,0.687,588.32,587.69,0.28617522]
[1743934885565,0.687,588.32,587.68,0.28617522]
[1743934885766,0.687,588.32,587.7,0.28617522]
[1743934885966,0.687,588.32,587.71,0.28617522]
[1743934886166,0.687,588.32,587.68,0.28617522]
[1743934886467,0.687,588.32,587.69,0.28617522]
[1743934886667,0.687,588.32,587.68,0.28617522]
[1743934887066,0.687,588.32,587.67,1.26919122]
[1743934887266,0.687,588.32,587.68,0.28618011]
[1743934888467,0.687,588.32,587.73,1.26919122]
[1743934888661,0.687,588.32,587.74,0.28618011]
[1743934891167,0.687,588.32,587.72,0.28618011]
[1743934891462,0.687,588.32,587.73,0.28618011]
[1743934891765,0.687,588.32,587.74,0.28618011]
[1743934891966,0.687,588.32,587.72,0.28618011]
[1743934892267,0.58003167,588.31,587.71,1.26919122]
[1743934892462,0.58003167,588.3,587.72,0.28618416]
[1743934892661,0.58003167,588.29,587.72,0.28618416]
[1743934892864,0.687,588.32,587.72,0.28618416]
[1743934893063,0.58022256,588.31,587.72,0.28618416]
[1743934893368,0.58022256,588.3,587.72,0.28618416]
[1743934893563,0.58022256,588.29,587.71,0.28618416]
[1743934893765,0.687,588.32,587.71,0.28618416]
[1743934893964,0.58043668,588.31,587.71,0.28618416]
[1743934894262,0.687,588.32,587.71,0.28618416]
[1743934894263,0.58043668,588.3,587.71,0.28618416]
[1743934894466,0.687,588.32,587.71,0.28618416]
[1743934894666,0.58054202,588.31,587.71,0.28618416]
[1743934894864,0.687,588.32,587.71,0.28618416]
[1743934895071,0.58053599,588.31,587.71,1.55537538]
[1743934895268,0.687,588.32,587.72,0.28618416]
[1743934895569,0.58056507,588.31,587.72,0.28618416]
[1743934895864,0.58056507,588.3,587.73,0.28616916]
[1743934896070,0.687,588.32,587.72,0.28616916]
[1743934896269,0.58057979,588.31,587.73,0.28616916]
[1743934896565,0.58057979,588.3,587.74,0.28616945]
[1743934896769,0.687,588.32,587.75,0.28616945]
[1743934896964,0.58056357,588.31,587.72,0.28616945]
[1743934897166,0.687,588.32,587.73,0.28616945]
[1743934897366,0.58055309,588.31,587.72,0.28616945]
[1743934897567,0.687,588.32,587.71,1.26919122]
[1743934897768,0.58052622,588.31,587.72,0.28616864]
[1743934897964,0.687,588.32,587.72,0.28616864]
[1743934898165,0.58052583,588.31,587.69,0.28616864]
[1743934898367,0.687,588.32,587.69,0.28616864]
[1743934898568,0.58051292,588.31,587.69,0.28616864]
[1743934898768,0.687,588.32,587.69,0.28616864]
[1743934898968,0.58051116,588.31,587.69,0.28616864]
[1743934899169,0.687,588.32,587.69,0.28616864]
[1743934899365,0.58048375,588.31,587.68,1.26919122]
[1743934899665,0.687,588.32,587.69,0.28616924]
[1743934899867,0.5804369,588.31,587.69,0.28616924]
[1743934900068,0.687,588.32,587.69,0.28616924]
[1743934900265,0.58043166,588.31,587.69,0.28616924]
[1743934900466,0.687,588.32,587.69,0.28616924]
[1743934900766,0.58039529,588.31,587.69,0.28616924]
[1743934900971,0.687,588.32,587.69,0.28616924]
[1743934901271,0.687,588.32,587.68,1.26919122]
[1743934901272,0.58040613,588.31,587.7,0.28616608]
[1743934901470,0.687,588.32,587.69,0.28616608]
[1743934901672,0.58039189,588.31,587.69,0.28616608]
[1743934901871,0.687,588.32,587.69,0.28616608]
[1743934902175,0.58039751,588.31,587.7,0.28616608]
[1743934902374,0.687,588.32,587.67,0.28616608]
[1743934902574,0.58037181,588.31,587.68,0.28616856]
[1743934902770,0.687,588.32,587.67,0.28616856]
[1743934902972,0.58037291,588.31,587.68,0.28616856]
[1743934903175,0.687,588.32,587.69,0.28616856]
[1743934903376,0.687,588.32,587.67,0.28616856]
[1743934903573,0.687,588.32,587.68,0.28616856]
[1743934903872,0.58034257,588.31,587.69,0.28616856]
[1743934904076,0.687,588.32,587.68,1.26919122]
[1743934904279,0.58033969,588.31,587.69,0.28616856]
[1743934904477,0.687,588.32,587.69,0.28616856]
[1743934906074,0.687,588.32,587.68,1.26919122]
[1743934906277,0.687,588.32,587.62,0.29584164]
[1743934906278,0.687,588.32,587.71,1.26919122]
[1743934907384,0.58027218,588.31,587.71,1.26919122]
[1743934907685,0.464,588.33,587.71,1.26919122]
[1743934907885,0.58026569,588.32,587.71,1.26919122]
[1743934908089,0.58026569,588.31,587.71,1.26919122]
[1743934908286,0.58024788,588.3,587.71,1.26919122]
[1743934908485,0.464,588.33,587.54,0.34040235]
[1743934908687,0.5802503,588.32,587.55,0.2861771]
[1743934908888,0.5802503,588.31,587.55,0.2861771]
[1743934909183,0.29579763,588.48,587.55,0.58197473]
[1743934909389,0.58023581,588.47,587.56,0.2861771]
[1743934909689,0.58023581,588.46,587.57,0.28618024]
[1743934909889,0.58023581,588.45,587.56,0.28618024]
[1743934910091,0.58023581,588.44,587.55,0.29579763]
[1743934910386,0.58023581,588.43,587.56,0.28617479]
[1743934910587,0.58023581,588.42,587.56,0.28617479]
[1743934910791,0.58023581,588.41,587.56,0.28617479]
[1743934910991,0.58023581,588.4,587.55,0.28617479]
[1743934911192,0.58023581,588.39,587.56,0.28617479]
[1743934911389,0.58023581,588.38,587.55,0.28617479]
[1743934911692,0.58023581,588.37,587.56,0.28617479]
[1743934911890,0.58023581,588.36,587.55,0.28617479]
[1743934912093,0.58023581,588.35,587.55,0.58196111]
[1743934912289,0.58023581,588.34,587.55,0.58196111]
[1743934912493,0.58023581,588.33,587.56,0.28617479]
[1743934912694,0.668,588.38,587.56,0.28617479]
[1743934912991,1.27420255,588.37,587.56,0.28617479]
[1743934913196,0.58020255,588.36,587.56,0.28617479]
[1743934913495,0.58020255,588.35,587.56,0.28617479]
[1743934913695,0.58020255,588.34,587.56,0.28617479]
[1743934913896,0.58020255,588.33,587.55,0.28617479]
[1743934914096,0.694,588.37,587.56,0.28617479]
[1743934914296,0.58022196,588.36,587.57,0.28617479]
[1743934914497,0.58022196,588.35,587.55,0.28617479]
[1743934914696,0.58022196,588.34,587.58,0.28617479]
[1743934914896,0.58022196,588.33,587.54,0.34040235]
[1743934915092,0.694,588.37,587.55,0.58202772]
[1743934915292,0.694,588.37,587.56,0.62656552]
[1743934915492,0.694,588.37,587.57,0.62655973]
[1743934915692,0.694,588.37,587.58,0.62655394]
[1743934915894,0.694,588.37,587.59,0.28617476]
[1743934916492,0.694,588.37,587.58,0.34037918]
[1743934916697,0.694,588.37,587.59,0.28612455]
[1743934917798,0.694,588.37,587.6,0.34036759]
[1743934917998,0.694,588.37,587.61,0.28612455]
[1743934918498,0.694,588.37,587.62,0.34035601]
[1743934918794,0.694,588.37,587.63,0.28612455]
[1743934919195,0.694,588.37,587.64,0.34034442]
[1743934919397,0.694,588.37,587.65,0.28612455]
[1743934919996,0.694,588.37,587.66,0.34033284]
[1743934920296,0.694,588.37,587.67,0.28612455]
[1743934920500,0.694,588.37,587.68,0.34032126]
[1743934920897,0.694,588.37,587.69,0.28608681]
[1743934921098,0.694,588.37,587.7,0.34030968]
[1743934921303,0.694,588.37,587.76,1.26919122]
[1743934921701,0.694,588.37,587.77,0.28608718]
[1743934923899,0.694,588.37,587.78,0.28608718]
[1743934924105,0.694,588.37,587.75,0.28608718]
[1743934924305,0.694,588.37,587.76,0.28608718]
[1743934924505,0.694,588.37,587.75,0.28608718]
[1743934925304,0.694,588.37,587.78,1.26919122]
[1743934925708,0.694,588.37,587.79,0.28605745]
[1743934925909,0.694,588.37,587.8,0.34025178]
[1743934926109,0.694,588.37,587.81,0.28605745]
[1743934926310,0.694,588.37,587.81,0.62630344]
[1743934926503,0.694,588.37,587.82,0.28605745]
[1743934929404,0.694,588.37,587.82,0.62629765]
[1743934929610,0.694,588.37,587.83,0.28605745]
[1743934931012,0.57873497,588.72,587.83,0.28605745]
[1743934931310,0.29574736,588.76,587.83,0.28605745]
[1743934931708,0.57873497,588.87,587.83,0.28605745]
[1743934931907,0.57873497,588.86,587.83,0.28605745]
[1743934932112,0.57873497,588.85,587.83,0.28605745]
[1743934932312,0.57873497,588.84,587.83,0.28605745]
[1743934932509,0.57873497,588.83,587.83,0.28605745]
[1743934932811,0.57873497,588.82,587.83,0.28605745]
[1743934933014,0.29568579,588.82,587.83,0.28605745]
[1743934934510,0.77168579,588.82,587.83,0.28605745]
[1743934934708,0.476,588.82,587.83,0.28605745]
[1743934935714,0.476,588.82,587.82,0.3402402]
[1743934935916,0.476,588.82,587.83,0.28604246]
[1743934936117,0.29568705,588.81,587.83,0.28604246]
[1743934936516,0.29568705,588.81,587.82,0.3402402]
[1743934936722,0.29568705,588.81,587.83,0.28604393]
[1743934937718,0.476,588.82,587.83,0.28604393]
[1743934938521,0.57816945,588.81,587.83,0.28604393]
[1743934938722,0.57816945,588.8,587.83,0.28604393]
[1743934938922,0.57803045,588.79,587.83,0.28604393]
[1743934939120,0.57803045,588.78,587.83,0.28604393]
[1743934939324,0.57803045,588.77,587.83,0.28604393]
[1743934939623,0.29569082,588.8,587.83,0.28604393]
[1743934939624,0.57803045,588.76,587.83,0.28604393]
[1743934939825,0.57803045,588.75,587.83,0.28604393]
[1743934940023,0.57803045,588.74,587.83,0.28604393]
[1743934940224,0.57803045,588.73,587.83,0.28604393]
[1743934940425,0.57803045,588.79,587.83,0.28604393]
[1743934940625,0.57803045,588.78,587.83,0.28604393]
[1743934940822,0.57803045,588.77,587.83,0.28604393]
[1743934941025,0.57803045,588.76,587.83,0.28604393]
[1743934941223,0.57803045,588.75,587.83,0.28604393]
[1743934941525,0.57803045,588.74,587.83,0.28604393]
[1743934941726,0.57803045,588.81,587.83,0.28604393]
[1743934941931,0.57803045,588.8,587.83,0.28604393]
[1743934942124,0.29569082,588.76,587.83,0.28604393]
[1743934942326,0.57803045,588.75,587.83,0.28604393]
[1743934942524,0.57785785,588.74,587.82,0.63593102]
[1743934942725,0.57785785,588.73,587.83,0.28605348]
[1743934942929,0.57785785,588.72,587.83,0.28605348]
[1743934943131,0.57785785,588.75,587.83,0.28605348]
[1743934943329,0.57785785,588.74,587.83,0.28605348]
[1743934943524,0.57785785,588.73,587.83,0.28605348]
[1743934943725,0.57785785,588.72,587.83,0.28605348]
[1743934943924,0.29569835,588.76,587.83,0.28605348]
[1743934944129,0.57785785,588.75,587.83,0.28605348]
[1743934944425,0.57788547,588.74,587.83,0.28605348]
[1743934944625,0.57788547,588.75,587.83,0.28605348]
[1743934945229,0.29569835,588.76,587.83,0.28605348]
[1743934946829,0.5778253,588.79,587.83,0.28605348]
[1743934947031,0.5778253,588.78,587.83,0.28605348]
[1743934947326,0.5778253,588.81,587.83,0.28605348]
[1743934947531,0.5778253,588.8,587.82,0.63593227]
[1743934947731,0.5778253,588.79,587.83,0.28603491]
[1743934948032,0.5778253,588.78,587.83,0.28603491]
[1743934948225,0.5778253,588.77,587.83,0.28603491]
[1743934948530,0.5778253,588.78,587.83,0.28603491]
[1743934949731,0.29569082,588.79,587.83,0.62626933]
[1743934950132,0.87351612,588.79,587.84,0.28603491]
[1743934950326,0.29569082,588.79,587.84,0.28603491]
[1743934950833,0.87351612,588.79,587.84,0.62626354]
[1743934951030,0.29569082,588.79,587.85,0.28603491]
[1743934951526,0.87351612,588.79,587.86,0.28603071]
[1743934951730,0.29569082,588.79,587.85,0.28603071]
[1743934952030,0.29569082,588.79,587.86,0.28603071]
[1743934952226,0.87350718,588.79,587.87,0.28603071]
[1743934952430,0.29569082,588.79,587.85,0.28603071]
[1743934952628,0.57781636,588.8,587.84,0.34022863]
[1743934952831,0.57781636,588.79,587.85,0.28603118]
[1743934953031,0.57781636,588.81,587.85,0.28603118]
[1743934953231,0.2956971,588.79,587.85,0.28603118]
[1743934953532,0.57781636,588.78,587.87,1.26919122]
[1743934953729,0.57781636,588.77,587.88,0.28603118]
[1743934953933,0.57781636,588.78,587.88,0.28603118]
[1743934954130,0.57781636,588.77,587.88,0.28603118]
[1743934954336,0.57781636,588.78,587.87,1.26919122]
[1743934954636,1.14781636,588.77,587.88,0.28603054]
[1743934954830,0.57,588.77,587.88,0.28603054]
[1743934955229,0.57,588.77,587.89,0.34019969]
[1743934955535,0.57,588.77,587.91,1.26919122]
[1743934955735,0.57,588.77,587.92,0.28603054]
[1743934955932,0.57,588.77,587.91,1.26919122]
[1743934956140,0.57,588.77,587.93,0.28602213]
[1743934956436,0.57,588.77,587.94,0.28602213]
[1743934956736,0.57,588.77,587.92,0.28602213]
[1743934956933,0.57,588.77,587.93,0.28602213]
[1743934957139,0.57,588.77,587.92,0.28602213]
[1743934957331,0.57,588.77,587.93,0.28602213]
[1743934957531,0.57,588.77,587.92,0.28602213]
[1743934957735,0.57,588.77,587.94,0.28602213]
[1743934957934,0.57,588.77,588.0,1.26919122]
[1743934958133,0.57,588.77,588.01,0.28602213]
[1743934958537,1.14784843,588.77,588.01,0.28602213]
[1743934958735,0.57784843,588.76,588.01,0.28602213]
[1743934958937,0.57784843,588.75,588.01,0.28602213]
[1743934959137,0.57784843,588.76,588.01,0.28602213]
[1743934959338,0.57784843,588.75,588.01,0.28602213]
[1743934959541,0.57784843,588.76,588.01,0.28602213]
[1743934959738,0.57784843,588.75,588.01,0.28602213]
[1743934959938,0.57784843,588.76,588.01,0.28602213]
[1743934960135,0.57784843,588.75,588.01,0.28602213]
[1743934960337,0.57784843,588.76,588.01,0.28602213]
[1743934960537,0.57784843,588.75,587.99,0.28602213]
[1743934960738,0.57784843,588.76,588.0,0.28602213]
[1743934960936,0.57784843,588.75,588.0,0.28602213]
[1743934961135,0.57784843,588.76,588.01,0.28602213]
[1743934961335,0.57784843,588.75,587.99,0.28602213]
[1743934961536,0.57,588.77,587.99,0.28602213]
[1743934961741,0.57,588.77,588.0,0.28603516]
[1743934961943,0.57,588.77,587.99,0.28603516]
[1743934962344,0.57,588.77,587.99,1.55522638]
[1743934962546,0.57,588.77,588.0,0.28603516]
[1743934965045,0.57,588.77,588.01,0.28603516]
[1743934965246,0.57,588.77,587.95,0.28603516]
[1743934965443,1.14796746,588.77,587.96,0.28603516]
[1743934965648,0.57,588.77,587.95,0.28603516]
[1743934965845,0.57796746,588.76,587.94,1.26919122]
[1743934966050,0.57796746,588.76,587.95,0.58169941]
[1743934966242,0.57796746,588.76,587.96,0.28603497]
[1743934966646,0.57796746,588.76,587.98,1.26919122]
[1743934966849,0.57796746,588.76,587.99,0.28603497]
[1743934967249,0.57796746,588.75,587.99,0.28603497]
[1743934967445,0.57796746,588.76,587.99,0.28603497]
[1743934967645,0.57796746,588.75,587.99,0.28603497]
[1743934967846,0.57796746,588.76,587.99,0.28603497]
[1743934968045,0.57796746,588.75,587.99,0.28603497]
[1743934968245,0.57796746,588.74,587.99,0.28603497]
[1743934968446,0.57796746,588.76,587.99,0.28603497]
[1743934968648,0.57796746,588.75,587.99,0.28603497]
[1743934968847,0.57796746,588.74,587.99,0.28603497]
[1743934969046,0.57796746,588.73,587.99,0.28603497]
[1743934969244,0.57796746,588.72,587.98,1.26919122]
[1743934969448,0.57796746,588.71,587.99,0.28603518]
[1743934969647,0.57796746,588.7,587.99,0.28603518]
[1743934969850,0.57796746,588.69,587.99,0.28603518]
[1743934970051,0.57796746,588.68,587.99,0.28603518]
[1743934970252,0.57796746,588.76,587.99,0.28603518]
[1743934970454,0.57796746,588.75,587.99,0.28603518]
[1743934970654,0.57796746,588.74,587.99,0.28603518]
[1743934970954,0.57796746,588.73,587.99,0.28603518]
[1743934971149,0.57796746,588.72,587.99,0.28603518]
[1743934971453,0.57796746,588.71,587.99,0.28603518]
[1743934971653,0.57796746,588.7,587.99,0.28603518]
[1743934971954,0.57796746,588.69,587.99,0.28603518]
[1743934972254,0.57796746,588.68,588.0,0.28603518]
[1743934972454,0.57796746,588.67,587.9,0.28603518]
[1743934972650,0.57796746,588.66,587.89,0.34019969]
[1743934972854,0.57796746,588.65,587.9,0.28606221]
[1743934973052,0.57796746,588.64,587.9,0.28606221]
[1743934973255,0.57796746,588.63,587.9,0.28606221]
[1743934973449,0.57796746,588.62,587.9,0.28606221]
[1743934973655,0.57796746,588.61,587.9,0.28606221]
[1743934973855,0.57796746,588.6,587.9,0.28606221]
[1743934974055,0.57796746,588.59,587.9,0.28606221]
[1743934974252,0.57796746,588.58,587.9,0.28606221]
[1743934974456,0.57796746,588.57,587.9,0.28606221]
[1743934974650,0.57796746,588.56,587.9,0.28606221]
[1743934974850,0.57796746,588.55,587.9,0.28606221]
[1743934975053,0.29569207,588.72,587.9,0.28606221]
[1743934975354,0.5793176,588.71,587.9,0.28606221]
[1743934975551,0.5793176,588.7,587.9,0.28606221]
[1743934975755,0.5793176,588.69,587.9,0.28606221]
[1743934975958,0.5793176,588.68,587.89,0.34019969]